Cogmind - Beta 14 @@@ ROGUE MODE // 2025.03.20 @ 17:49:14 Player: Gafrankl Result: Destroyed by Y-45 Defender with Beam Rifle Performance ------------- Evolutions (1) 500 Regions Visited (2) 400 Robots Destroyed (28) 140 Value Destroyed (886) 886 Prototype IDs (0) 0 Alien Tech Used (0) 0 Bonus (0) 0 TOTAL SCORE: 1926 Bonus ------- None Cogmind --------- Core Integrity 0/400 Matter 199/300 Energy 399/400 System Corruption 5% Temperature Cool (9) Movement Flying (440) Ox5 Location -9/Materials Parts ------- > --- POWER (2) -------- Ion Engine Ion Engine > --- PROPULSION (3) --- Flight Unit > --- UTILITY (2) ------ Medium Storage Unit > --- WEAPON (2) ------- Light Assault Rifle > --- INVENTORY (10) --- Light Ion Engine Structural Scanner Light Assault Rifle Grenade Launcher Grenade Launcher Mini Grenade Launcher Peak State ------------ > --- POWER ------------ Ion Engine Improved Ion Engine > --- PROPULSION ------- Aluminum Leg Hover Unit > --- UTILITY ---------- Improved Heat Sink Shield Generator > --- WEAPON ----------- EM Shotgun Light Cannon > --- INVENTORY -------- Ion Engine Light Ion Engine Medium Storage Unit Structural Scanner [Rating: 13] Favorites ----------- Power Ion Engine Engine Ion Engine Propulsion Light Treads Treads Light Treads Leg Aluminum Leg Hover Unit Hover Unit Flight Unit Flight Unit Utility Improved Heat Sink Device Improved Heat Sink Storage Medium Storage Unit Protection Core Shielding Weapon Assault Rifle Energy Gun EM Shotgun Ballistic Gun Assault Rifle Ballistic Cannon Light Cannon Special Weapon Plasma Cutter Build | -11 -10 -9 ------- Run | Yrd Mat Mat Slots Evolved 2 | . . 2 Power 1 | . . 1 Propulsion 1 | . . 1 Utility . | . . . Weapon . | . . . Parts Attached 29 | 6 4 19 Power 8 | 1 1 6 Engine 8 | 1 1 6 Core . | . . . Reactor . | . . . Propulsion 7 | 2 1 4 Treads 2 | 2 . . Leg 1 | . . 1 Wheel . | . . . Hover 2 | . 1 1 Flight 2 | . . 2 Utility 5 | . 2 3 Device 3 | . 2 1 Storage 1 | . . 1 Processor . | . . . Hackware . | . . . Protection 1 | . . 1 Artifact . | . . . Weapon 9 | 3 . 6 Energy Gun 2 | 1 . 1 Energy Cannon . | . . . Ballistic Gun 5 | 2 . 3 Ballistic Cannon 1 | . . 1 Launcher . | . . . Special Weapon 1 | . . 1 Impact Weapon . | . . . Slashing Weapon . | . . . Piercing Weapon . | . . . Special Melee Weapon . | . . . Unidentified Prototypes . | . . . Parts Lost 20 | . 2 18 Power 5 | . 1 4 Propulsion 6 | . 1 5 Utility 3 | . . 3 Weapon 6 | . . 6 Highest Loss Streak 8 | . 1 8 To Critical Strikes . | . . . Average Slot Usage (%) 73 | . 79 71 Engine 16 | . 11 17 Treads 8 | . 22 3 Leg 2 | . . 3 Hover 4 | . 1 5 Flight 2 | . . 3 Device 13 | . 15 12 Storage 2 | . . 3 Protection 3 | . . 4 Ballistic Gun 17 | . 28 13 Ballistic Cannon 2 | . . 3 Peak Build Rating 13 | 5 9 13 Average Rating 7 | 4 6 8 On Entrance 4 | . 5 9 Naked Turns . | . . . Heaviest Build 23 | 7 11 23 Greatest Support 40 | 40 40 10 Greatest Overweight (x) 5 | . 1 5 Average Overweight (x) 1 | . . 1 Largest Inventory Capacity 10 | 5 5 10 Average Capacity 6 | 5 5 6 Most Carried 6 | 1 3 6 Average Carried 3 | . 2 4 Final Capacity 10 | 5 5 10 Final Carried 6 | 1 3 6 Class Distribution -------------------- 73% | Mutant 26% | Scavenger-Mutant Dominant Class ---------------- Mutant | -10/Materials Mutant | -9/Materials Resources | -11 -10 -9 ----------- Run | Yrd Mat Mat Matter Collected 879 | 187 273 419 Remotely . | . . . Salvage Created 881 | . 359 522 Parts 57 | . 24 33 Haulers Intercepted . | . . . Recyclers Shooed 1 | . . 1 Parts Field Recycled . | . . . Retrieved Matter . | . . . Parts Self-Destructed . | . . . Prevented . | . . . Kills | -11 -10 -9 ------- Run | Yrd Mat Mat Combat Hostiles Destroyed 26 | . 8 18 Guns 14 | . 8 6 Cannons 9 | . . 9 AOE 3 | . . 3 Classes Destroyed 6 | . 2 4 Operator 1 | . 1 . Watcher 1 | . . 1 Swarmer 6 | . . 6 Grunt 13 | . 8 5 Brawler 1 | . . 1 Sentry 6 | . . 6 Best Kill Streak 6 | . 6 3 Combat Bots Only 6 | . 6 3 Max Kills in Single Turn 3 | . 1 3 Gunslinging 1 | . . 1 Exploded 3 | . . 3 Melee . | . . . Uniques/NPCs Destroyed . | . . . Combat | -11 -10 -9 -------- Run | Yrd Mat Mat Hostile Shots Fired 236 | . 52 184 Missed 61 | . 14 47 Damage Taken 2055 | . 482 1573 Core 461 | . 57 404 Absorbed by Shields 38 | . . 38 Redirected to Shielding 51 | . . 51 Core Remaining (%) 88 | 100 77 . Volleys Fired 133 | . 32 101 Largest 2 | . 2 2 Hottest 80 | . 40 80 Shots Fired 198 | . 64 134 Gun 142 | . 64 78 Cannon 50 | . . 50 Launcher . | . . . Special 6 | . . 6 Kinetic 188 | . 64 124 Thermal 6 | . . 6 Explosive . | . . . Electromagnetic 4 | . . 4 Robot Hit Streak 10 | . 10 10 Robot Miss Streak 5 | . 4 5 Penetration Max . | . . . Secondary Targets 2 | . 1 1 Max Gunslinging Chain 1 | . 1 1 Shots Hit Robots 130 | . 42 88 Core Hits 52 | . 20 32 Critical Kills . | . . . Critical Parts Destroyed . | . . . Critical Strikes 1 | . . 1 Blast 1 | . . 1 Melee Attacks . | . . . Impact . | . . . Slashing . | . . . Piercing . | . . . Sneak Attacks . | . . . Combat Hostiles . | . . . Follow-up Attacks . | . . . Damage Inflicted 1997 | . 534 1463 Guns 1040 | . 534 506 Cannons 586 | . . 586 Explosions 338 | . . 338 Melee . | . . . Ramming 1 | . . 1 Kinetic 1587 | . 534 1053 Thermal 32 | . . 32 Explosive 338 | . . 338 Electromagnetic 39 | . . 39 Impact . | . . . Slashing . | . . . Piercing . | . . . Highest Corruption 5 | . . 5 Average Corruption 5 | . . 5 Corruption Purged . | . . . Corruption Blocked . | . . . Effects 21 | . . 21 Message Errors 5 | . . 5 Matter Fused 10 | . . 10 Heat Flow Errors 1 | . . 1 Energy Discharges 2 | . . 2 Misfires 1 | . . 1 Weapon Failures 2 | . . 2 Overload Shots . | . . . Overflow Damage 146 | . . 146 Projectiles . | . . . Explosions 146 | . . 146 Melee . | . . . Knockbacks 4 | . . 4 Impact . | . . . Kinetic 3 | . . 3 Secondary 1 | . . 1 Self-Inflicted Damage 100 | . . 100 Shots 1 | . . 1 Rammed 2 | . . 2 Targets Rammed 2 | . . 2 Kicked . | . . . Crushed . | . . . Highest Temperature 95 | . 2 95 Average Temperature 10 | . 2 11 Received Heat Transfer 663 | . 276 387 Siege Activations . | . . . Robots Corrupted . | . . . Combat Hostiles . | . . . Parts Fried . | . . . Impact Corruptions . | . . . Robots Melted . | . . . Combat Hostiles . | . . . Parts Melted 1 | . . 1 Heat Transferred 111 | . . 111 Parts Sabotaged . | . . . Parts Stolen . | . . . Parts Stripped . | . . . Power Chain Reactions . | . . . Alert | -11 -10 -9 ------- Run | Yrd Mat Mat Peak Influence 356 | . 215 356 Initial 90 | . . 90 Average 137 | . 103 164 Maximum Alert Level 1 | . 1 1 Low Security (%) 69 | 100 83 61 Level 1 30 | . 16 38 Level 2 . | . . . Level 3 . | . . . Level 4 . | . . . Level 5 . | . . . High Security . | . . . Max Security . | . . . Squads Dispatched 2 | . 2 . Investigation 1 | . 1 . Extermination . | . . . Reinforcement 1 | . 1 . Assault . | . . . Garrison . | . . . Intercept . | . . . Searches Triggered . | . . . Construction Impeded . | . . . Haulers Reinforced . | . . . Active Scanning Responses . | . . . Cargo Convoy Interrupts . | . . . Stealth | -11 -10 -9 --------- Run | Yrd Mat Mat Distress Signals 2 | . . 2 Communications Jammed . | . . . Distress Signals . | . . . Times Spotted 44 | . 11 33 Peak Tracking Total 6 | . 6 6 Tactical Retreats 2 | . . 2 Traps | -11 -10 -9 ------- Run | Yrd Mat Mat Traps Triggered 1 | . 1 . Indirectly . | . . . Trap Hack Attempts . | . . . Triggered . | . . . Disarmed . | . . . Reprogrammed . | . . . Reused . | . . . Traps Extracted . | . . . Installed . | . . . Triggered . | . . . Machines | -11 -10 -9 ---------- Run | Yrd Mat Mat Machines Disabled 2 | . . 2 Max in Single Turn 1 | . . 1 Machines Repaired . | . . . Machines Dismantled . | . . . Machines Sabotaged . | . . . Overloaded Fab Kills . | . . . Hacking | -11 -10 -9 --------- Run | Yrd Mat Mat Machines Accessed . | . . . Terminals . | . . . Fabricators . | . . . Repair Stations . | . . . Recycling Units . | . . . Scanalyzers . | . . . Garrison Access . | . . . Total Hacks . | . . . Successful . | . . . Failed . | . . . Catastrophic . | . . . Database Lockouts . | . . . Manual . | . . . Terminals . | . . . Fabricators . | . . . Repair Stations . | . . . Recycling Units . | . . . Scanalyzers . | . . . Garrison Access . | . . . Terminal Hacks . | . . . Fabricator Hacks . | . . . Repair Station Hacks . | . . . Recycling Unit Hacks . | . . . Scanalyzer . | . . . Garrison Access Hacks . | . . . Unauthorized Hacks . | . . . Terminals . | . . . Fabricators . | . . . Repair Stations . | . . . Recycling Units . | . . . Scanalyzers . | . . . Garrison Access . | . . . Data Cores Recovered 1 | . 1 . Used . | . . . Hacking Detections . | . . . Full Trace Events . | . . . Feedback Events . | . . . Feedback Blocked . | . . . Robot Schematics Acquired . | . . . Robots Built . | . . . Authchips . | . . . Time . | . . . Total Robot Build Rating . | . . . Part Schematics Acquired . | . . . Parts Built . | . . . Authchips . | . . . Time . | . . . Total Part Build Rating . | . . . Parts Repaired . | . . . Time . | . . . Parts Recycled . | . . . Recycled Matter . | . . . Retrieved Matter . | . . . Retrieved Components . | . . . Parts Scanalyzed . | . . . Part Schematics Acquired . | . . . Parts Damaged . | . . . Bothacking | -11 -10 -9 ------------ Run | Yrd Mat Mat Used RIF Installer . | . . . Robots Hacked . | . . . Non-combat . | . . . Combat . | . . . Robot Hacks Applied . | . . . Relay Couplers Released . | . . . Fabnet Peak Effective % . | . . . Robots Rewired . | . . . Allies Hacked . | . . . Hacks Repelled . | . . . Allies | -11 -10 -9 -------- Run | Yrd Mat Mat Total Allies . | . . . Largest Group . | . . . Highest-Rated Group . | . . . Highest-Rated Ally . | . . . Total Orders . | . . . Ally Attacks . | . . . Total Damage . | . . . Kills . | . . . Allies Corrupted . | . . . Allies Melted . | . . . Intel | -11 -10 -9 ------- Run | Yrd Mat Mat Robot Analysis Total . | . . . Derelict Logs Recovered . | . . . Drone Launches . | . . . Drone Recoveries . | . . . Exploration | -11 -10 -9 ------------- Run | Yrd Mat Mat Turns Passed 1495 | 119 356 1020 Spaces Moved 599 | 69 155 375 Core 19 | 4 . 15 Treads 193 | 65 128 . Legs 29 | . . 29 Wheels . | . . . Hover 221 | . 27 194 Flight 137 | . . 137 Fastest Speed 40 | 50 140 40 Average Speed 181 | 153 156 196 Slowest Speed 440 | 160 160 440 Overloaded Moves . | . . . Propulsion Burnouts . | . . . Robots Hopped . | . . . Cave-ins Triggered . | . . . Exploration Rate (%) 20 | 4 24 34 Regions Visited 2 Branch Regions . Pre-discovered Areas . | . . . Known Exits Taken . | . . . Unknown Exits Taken 2 | 1 1 . Scrap Searched . | . . . Spaces Dug . | . . . Terrain Destroyed 43 | . . 43 Melee . | . . . Projectile . | . . . AOE 43 | . . 43 Terrain Rammed . | . . . Walls Destroyed . | . . . Machines Disabled . | . . . Actions | -11 -10 -9 --------- Run | Yrd Mat Mat Total 796 | 79 202 515 Wait 27 | 4 10 13 Move 597 | 68 154 375 Hop . | . . . Pick Up 8 | 1 2 5 Fast Attach 21 | 5 4 12 Attach 4 | . . 4 Detach . | . . . Swap 4 | 1 . 3 Drop . | . . . Fire 133 | . 32 101 Melee . | . . . Ram 2 | . . 2 Kick . | . . . Crush . | . . . Escape Stasis . | . . . Rewire . | . . . Trap . | . . . Miscellaneous . | . . . Route ------- -11/Scrapyard -10/Materials -9/Materials History --------- Turn | Location | Event 11 | -11/Scrapyard | Discovered new exit (range 15) 120 | -11/Scrapyard | Entered Materials 306 | -10/Materials | Build established: Mutant 455 | -10/Materials | Discovered new exit (range 9) 476 | -10/Materials | Entered another Materials area 476 | -9/Materials | Evolved 2 slots: Power x1, Propulsion x1 821 | -9/Materials | Lost 4 parts (2n2w) 1066 | -9/Materials | Lost 3 parts (1n1u1w) 1132 | -9/Materials | Core integrity fell below 50% 1174 | -9/Materials | Lost 8 parts (4p1n1u2w) 1190 | -9/Materials | Core integrity fell below 20% 1496 | -9/Materials | Destroyed by Y-45 Defender with Beam Rifle Last Messages --------------- Acquired 16 matter. Acquired 59 matter. R-06 Scavenger inserts Beam Rifle into recycling unit. System corrupted: Matter fused (-6). U-05 Engineer works on Atomic Centrifuge. 6CHFTC7C%=R6HI82DYJTULXS#FMTMW Acquired Mni. Grenade Launcher. Acquired Grenade Launcher. Y-45 Defender destroyed. Acquired 60 matter. JJFMMB48:YI>PCG 3GFH:JVMC& R-06 Scavenger collects Lgt. Armor Plating. System corrupted: Matter fused (-8). Acquired Ion Engine. System corrupted: Matter fused (-8). Lgt. Assault Rifle destroyed. Core Shielding destroyed. System corrupted: Lgt. Assault Rifle jammed. Map ----- +----------------------------------------------------+ | ####???????????????????????????????? | | ???????????????????????????????????? | | ???????????????????????????????????? | | #######????????????????????????????? | | # #????????????????????????????? | | % #????????????????????????????? | | % #????????????????????????????? | | % #????????????????????????????? | | # % #????????????????????????????? | | ### ###????????????????????????????? | | ??# #???##+###?????????????????????? | | ?## ##?? ##### ??????????????? | | ?# ### ???????????? | | ## T ???????????? | | # % ???????????? | | # ####? ???????????? | | # ######???? ??????????? | | # ##????????# #??????????? | | # #????????# #??????????? | | # #???###### #??????????? | | # ##??# # #??????????? | | # #??#!!! # ##########?? | | # # # #?##!!! # # #?? | | # ##### #?# !! # # !** #?? | | ############## # # ** #?? | | #?# ## # #@ ** #?? | | #?# ## # #Y #?? | | ### ] ##[ # + """ #?? | | # ## # # """ #?? | | + ]]] ####+## # """ #?? | | # ] ] + # #?? | | #+# ] ] ####+####+#+##########?? | | # # #????? | | ########### """ #????? | | #?????????# """"" !! #????? | | #???????????""""" ! #????? | | #?????????? """"" *! #????? | | #?????????? """ #????? | | #?????????? ! #????? | | #??????????##################????? | | #????????????????????????????????? | | ###????????????????????????????????? | | ???????????????????????????????????? | | ???????????????????????????????????? | | ???????????????????????????????????? | | ???????????????????????????????????? | | ???????????????????????????????????? | | ???????????????????????????????????? | | ???????????????????????????????????? | | ???????????????????????????????????? | +----------------------------------------------------+ Best States ------------- Heat Dissipation 42 Energy Generation 17 Energy Capacity 415 Matter Stores 300 Matter Capacity 300 Sight Range 16 Terrain Scan Density 10 Core Shielding 20 Evasion (%) 62 Recoil Reduction 2 Item Schematics ----------------- None Robot Schematics ------------------ None Fabricated ------------ Nothing Alien Tech Used ----------------- None Achievements -------------- None Challenges ------------ None Game ------ Seed RingBombardmentPick Manual? 0 Play Time 00:13:12 Cumulative 6.2 hours Start 2025.03.20 @ 17:37:56 End 2025.03.20 @ 17:49:14 Sessions 1 Manual Loads 0 Difficulty Rogue Special Mode None Game No. 11 Rogue 11 Adventurer 0 Explorer 0 Win Type - Total 0 Types 0/0/0/0/0/0/0/0/0 Lore% 2 Gallery% 11 Achievement% 12 Wizard Run 0 Options --------- Layout 1 ASCII 0 Keyboard 0 Movement Arrows Keybinds 0 Fullscreen 1 Font 24/Smallcaps Map View 50x35 Zoom Use 0% Tactical HUD 0 Map Filters NONE Filters NONE Steam 1 RUN: d0902368-59a9-4670-b9bb-53ddbdde157b